bitfinex/quotes_SOLUSD_20251204
["timestamp","ask_amount","ask_price","bid_price","bid_amount"]
[1764888655381,0.015,139.62,139.61,17.3194026]
[1764888659283,0.015,139.62,139.61,26.20734684]
[1764888663784,0.015,139.62,139.61,35.01729176]
[1764888664095,0.1,139.65,139.64,16.308864]
[1764888664289,0.1,139.65,139.64,28.83715996]
[1764888664471,0.1,139.65,139.64,29.50715996]
[1764888664788,0.1,139.65,139.64,32.3725921]
[1764888664981,0.1,139.65,139.64,39.53386394]
[1764888665182,0.1,139.65,139.64,43.48229613]
[1764888665367,0.1,139.69,139.68,16.308864]
[1764888665691,0.1,139.69,139.68,24.168864]
[1764888665985,0.1,139.69,139.68,27.70388566]
[1764888666576,0.1,139.69,139.68,34.86310673]
[1764888667671,0.1,139.69,139.68,34.19310673]
[1764888668295,0.1,139.69,139.68,34.86310673]
[1764888668595,0.1,139.69,139.68,39.53140269]
[1764888671178,0.1,139.69,139.68,38.86140269]
[1764888671585,0.1,139.69,139.68,39.53140269]
[1764888674397,0.1,139.69,139.68,37.84645662]
[1764888675179,0.1,139.69,139.68,46.46318477]
[1764888685216,0.1,139.71,139.69,8.80994492]
[1764888685408,0.1,139.71,139.7,27.15221389]
[1764888685713,0.1,139.73,139.72,16.308864]
[1764888685911,0.1,139.73,139.72,27.86793103]
[1764888686113,0.1,139.73,139.72,28.54793103]
[1764888686318,0.1,139.73,139.72,31.41172197]
[1764888686615,0.1,139.73,139.72,40.02845012]
[1764888687403,0.1,139.73,139.72,47.1856216]
[1764888698333,0.1,139.73,139.72,47.1856216]
[1764888700335,0.1,139.75,139.72,65.07855031]
[1764888700530,0.1,139.75,139.74,2.98334989]
[1764888700738,0.76,139.75,139.74,10.84334989]
[1764888700941,0.76,139.75,139.74,13.70693581]
[1764888703519,0.76,139.75,139.74,20.86308294]
[1764888704448,0.8,139.75,139.74,20.86308294]
[1764888704743,0.1,139.75,139.74,20.86308294]
[1764888705339,0.1,139.75,139.74,37.17194694]
[1764888707937,0.1,139.75,139.74,45.78867509]
[1764888709243,0.78,139.75,139.74,45.78867509]
[1764888711946,0.1,139.75,139.74,46.46867509]
[1764888712650,0.1,139.75,139.74,45.78867509]
[1764888717074,0.78,139.75,139.74,45.78867509]
[1764888718676,0.1,139.75,139.74,45.78867509]
[1764888719064,0.1,139.75,139.74,42.8053252]
[1764888719277,0.1,139.75,139.74,45.78867509]
[1764888721180,0.78,139.75,139.74,45.78867509]
[1764888721564,0.1,139.75,139.74,45.78867509]
[1764888721759,0.78,139.75,139.74,45.78867509]
[1764888722482,0.1,139.75,139.74,45.78867509]
[1764888723082,0.1,139.75,139.74,42.8053252]
[1764888723383,0.1,139.75,139.74,45.78867509]
[1764888728960,0.78,139.75,139.74,42.8053252]
[1764888732001,0.78,139.75,139.74,45.78867509]
[1764888732688,0.78,139.75,139.74,42.8053252]
[1764888736902,0.78,139.75,139.74,23.46501113]
[1764888739699,8.80994492,139.74,139.7,8.61672815]
[1764888739877,4.65836849,139.71,139.66,7.16024631]
[1764888740077,4.65836849,139.69,139.66,25.06086209]
[1764888740291,8.80994492,139.72,139.66,7.16024631]
[1764888740292,5.52866034,139.71,139.66,7.16024631]
[1764888740497,4.65836849,139.7,139.66,7.16024631]
[1764888740692,5.35836849,139.7,139.66,7.16024631]
[1764888740891,0.7,139.69,139.66,7.16024631]
[1764888741699,0.7,139.69,139.66,25.06086209]
[1764888742275,4.65836849,139.68,139.65,15.0205337]
[1764888742478,0.7,139.69,139.65,7.1605337]
[1764888742683,0.7,139.68,139.65,7.1605337]
[1764888745089,4.65836849,139.67,139.65,7.1605337]
[1764888745488,0.7,139.66,139.64,31.32995864]
[1764888745685,4.65836849,139.65,139.61,7.86]
[1764888745891,4.65836849,139.65,139.61,7.16251354]
[1764888746096,0.7,139.64,139.61,7.16251354]
[1764888748006,5.35836849,139.64,139.61,7.16251354]
[1764888748384,0.7,139.63,139.61,7.16251354]
[1764888748910,5.35836849,139.64,139.61,7.85251354]
[1764888749205,0.7,139.63,139.61,7.16251354]
[1764888755707,0.7,139.63,139.61,7.85251354]
[1764888756594,0.7,139.63,139.61,7.16251354]
[1764888756995,0.7,139.65,139.62,0.69]
[1764888757408,11.81876662,139.66,139.62,0.69]
[1764888757718,0.7,139.64,139.61,7.85251354]
[1764888759419,0.7,139.64,139.61,7.16251354]
[1764888760511,4.65836849,139.68,139.62,13.20836849]
[1764888760704,0.7,139.66,139.62,13.20836849]
[1764888761086,0.7,139.66,139.63,0.69]
[1764888761411,0.7,139.66,139.64,7.16127184]
[1764888765113,0.7,139.66,139.64,15.02127184]
[1764888772700,12.5079852,139.68,139.64,15.70127184]
[1764888772904,0.69,139.67,139.64,15.70127184]
[1764888774420,0.69,139.67,139.64,15.02127184]
[1764888775224,0.69,139.67,139.64,15.70127184]
[1764888775409,11.81717926,139.69,139.65,0.68]
[1764888775609,0.69,139.68,139.65,0.68]
[1764888775826,0.69,139.68,139.64,19.67964033]
[1764888776117,0.69,139.68,139.64,20.35964033]
[1764888778529,7.84925348,139.68,139.64,20.35964033]
[1764888778897,0.69,139.67,139.64,20.35964033]
[1764888780522,0.69,139.67,139.64,15.70127184]
[1764888783448,0.69,139.67,139.64,15.02127184]
[1764888783748,0.69,139.67,139.64,15.70127184]
[1764888788332,5.51244593,139.67,139.64,15.70127184]
[1764888791525,0.69,139.66,139.64,7.86]
[1764888792225,0.69,139.66,139.63,0.68]
[1764888792424,0.69,139.66,139.62,20.36018469]
[1764888793233,0.69,139.66,139.62,19.68018469]
[1764888793538,7.85064575,139.66,139.62,20.34018469]
[1764888793710,7.85064575,139.66,139.63,0.66]
[1764888794931,0.66,139.65,139.63,0.66]
[1764888795153,0.66,139.65,139.62,7.86]
[1764888795457,0.66,139.65,139.62,15.68198597]
[1764888799855,0.66,139.65,139.62,15.02198597]
[1764888800260,0.66,139.65,139.62,15.68198597]
[1764888806560,0.66,139.65,139.63,0.66]
[1764888807438,0.66,139.65,139.63,7.82170587]
[1764888809653,0.66,139.65,139.63,7.16170587]
[1764888810858,0.66,139.65,139.63,7.82170587]
[1764888811046,0.66,139.65,139.63,7.16170587]
[1764888811248,0.66,139.65,139.63,7.82170587]
[1764888811841,0.66,139.65,139.63,7.16170587]
[1764888812734,12.64345266,139.66,139.63,7.82170587]
[1764888813058,0.66,139.65,139.63,7.82170587]
[1764888815345,0.66,139.65,139.63,7.16170587]
[1764888815560,0.66,139.65,139.63,7.82170587]
[1764888816972,0.66,139.65,139.63,7.16170587]
[1764888817769,0.66,139.65,139.63,7.82170587]
[1764888819469,0.66,139.65,139.63,7.16170587]
[1764888819668,0.66,139.65,139.63,7.82170587]
[1764888820261,0.66,139.66,139.63,7.82170587]
[1764888824756,7.15973365,139.67,139.64,0.7]
[1764888825264,7.85973365,139.67,139.64,0.7]
[1764888833282,7.83922107,139.68,139.64,7.86089115]
[1764888833576,4.82618785,139.67,139.64,29.35471167]
[1764888833786,7.83922107,139.68,139.65,0.67]
[1764888833976,4.82618695,139.67,139.65,0.67]
[1764888834174,7.83922107,139.68,139.65,0.67]
[1764888834375,4.82618769,139.67,139.65,7.83074094]
[1764888834687,0.68,139.67,139.65,7.83074094]
[1764888834884,34.62825527,139.71,139.65,7.16074094]
[1764888835084,4.82603457,139.7,139.68,16.308864]
[1764888835300,7.83774894,139.71,139.66,33.00747546]
[1764888835590,4.82328393,139.7,139.67,0.67]
[1764888835765,0.68,139.7,139.67,18.56232689]
[1764888836174,0.68,139.7,139.68,0.67]
[1764888836374,5.50199,139.7,139.68,0.67]
[1764888839285,0.68,139.7,139.68,0.67]
[1764888842385,0.68,139.7,139.68,18.56232689]
[1764888845290,0.68,139.7,139.68,17.89232689]
[1764888845694,0.68,139.7,139.68,18.56232689]
[1764888846064,10.14448333,139.71,139.68,0.67]
[1764888846266,0.68,139.7,139.67,7.15973365]
[1764888846461,0.68,139.7,139.68,0.67]
[1764888847194,0.68,139.7,139.68,7.15918995]
[1764888849396,0.68,139.7,139.68,25.05151684]
[1764888849597,0.68,139.7,139.68,7.15918995]
[1764888849895,0.68,139.7,139.68,25.05151684]
[1764888850085,0.68,139.7,139.68,7.15918995]
[1764888850396,0.68,139.7,139.68,25.05151684]
[1764888850694,0.68,139.7,139.68,25.72151684]
[1764888850891,0.68,139.7,139.68,25.05151684]
[1764888851288,0.68,139.7,139.68,25.72151684]
[1764888851490,0.68,139.7,139.68,25.05151684]
[1764888851995,0.68,139.7,139.68,25.72151684]
[1764888853106,0.68,139.7,139.68,25.05151684]
[1764888853308,0.68,139.7,139.68,25.77151684]
[1764888856903,12.52142535,139.71,139.68,25.77151684]
[1764888857090,11.82142535,139.71,139.68,25.77151684]
[1764888857290,0.7,139.7,139.68,25.77151684]
[1764888857797,7.85774894,139.71,139.68,25.77151684]
[1764888858008,12.67386187,139.71,139.68,25.77151684]
[1764888858397,12.67386187,139.71,139.68,18.61232689]
[1764888858580,12.67386187,139.71,139.68,0.72]
[1764888859105,5.51611293,139.71,139.69,7.15870856]
[1764888859392,0.7,139.71,139.69,7.15870856]
[1764888859601,5.51611293,139.71,139.69,7.87870856]
[1764888866208,5.51611293,139.71,139.68,7.87922107]
[1764888866706,5.51611293,139.71,139.68,7.15922107]
[1764888866912,5.51611293,139.71,139.69,0.72]
[1764888868312,0.7,139.71,139.69,0.72]
[1764888868604,0.7,139.71,139.68,7.87922107]
[1764888868986,0.7,139.71,139.69,7.15869349]
[1764888869386,0.7,139.71,139.69,7.87869349]
[1764888869596,5.36367641,139.71,139.69,7.87869349]
[1764888872295,4.82147667,139.7,139.69,7.87869349]
[1764888885427,5.51147667,139.7,139.66,7.86]
[1764888885729,5.51147667,139.7,139.65,7.82047848]
[1764888885730,4.66367641,139.68,139.65,7.82047848]
[1764888885929,4.82147667,139.67,139.65,0.66]
[1764888886127,4.82147667,139.66,139.63,7.82161296]
[1764888886315,7.85029813,139.66,139.63,7.82161296]
[1764888886501,12.51397454,139.66,139.63,7.82161296]
[1764888887923,0.69,139.65,139.63,0.66]
[1764888889106,11.82397454,139.66,139.63,0.66]
[1764888889305,12.51397454,139.66,139.63,0.66]
[1764888891830,7.85029813,139.66,139.63,0.66]
[1764888892128,12.51397454,139.66,139.63,0.66]
[1764888893115,0.69,139.65,139.63,0.66]
[1764888894423,7.85092546,139.65,139.63,0.66]
[1764888894615,7.85092546,139.65,139.62,7.8220421]
[1764888894920,7.85092546,139.65,139.63,0.66]
[1764888895412,7.16092546,139.65,139.63,0.66]
[1764888897012,7.85092546,139.65,139.63,0.66]
[1764888897329,5.50608804,139.66,139.63,7.82175733]
[1764888898727,12.66640822,139.66,139.63,7.82175733]
[1764888900517,17.33008463,139.66,139.63,7.82175733]
[1764888900727,12.51399659,139.66,139.63,7.82175733]
[1764888900939,11.82399659,139.66,139.62,7.16204112]
[1764888901114,5.35367641,139.65,139.62,7.82204112]
[1764888902238,4.66367641,139.64,139.62,7.82204112]
[1764888903240,5.35367641,139.64,139.61,31.99151922]
[1764888903435,11.82503781,139.64,139.61,0.66]
[1764888903637,7.1613614,139.64,139.61,0.66]
[1764888903931,5.35367641,139.63,139.6,7.16301174]
[1764888904143,5.35367641,139.63,139.6,7.82301174]
[1764888904838,4.66367641,139.62,139.6,0.66]
[1764888905137,4.66367641,139.62,139.59,15.22359983]
[1764888905138,4.66367641,139.61,139.59,0.2]
[1764888905439,4.66367641,139.61,139.59,0.86]
[1764888905815,4.66367641,139.6,139.59,0.86]
[1764888906413,5.35367641,139.6,139.59,0.2]
[1764888906618,4.66367641,139.6,139.59,0.2]
[1764888906942,12.51700019,139.6,139.59,0.2]
[1764888907527,21.32694511,139.6,139.59,0.2]
[1764888907839,26.13385093,139.6,139.59,0.2]
[1764888908228,21.32694511,139.6,139.59,0.2]
[1764888908448,26.13039486,139.6,139.59,0.2]
[1764888909224,25.11880892,139.58,139.57,0.2]
[1764888909427,42.30616174,139.58,139.57,0.2]
[1764888909631,42.99616174,139.58,139.57,0.2]
[1764888910645,50.16051193,139.58,139.57,0.2]
[1764888911222,40.83315911,139.58,139.57,0.2]
[1764888911423,50.16051193,139.58,139.57,0.2]
[1764888912342,40.83315911,139.58,139.57,0.2]
[1764888912541,50.16051193,139.58,139.57,0.2]
[1764888915639,53.02923212,139.58,139.57,0.2]
[1764888916740,12.5180266,139.58,139.57,0.2]
[1764888916946,11.8280266,139.58,139.57,0.2]
[1764888917138,12.5180266,139.58,139.57,0.2]
[1764888918351,10.84532578,139.58,139.57,0.2]
[1764888919050,18.70532578,139.58,139.57,0.2]
[1764888920036,25.87176609,139.58,139.57,0.2]
[1764888920355,18.70532578,139.58,139.57,0.2]
[1764888920540,25.87176609,139.58,139.57,0.2]
[1764888920936,18.01532578,139.58,139.57,0.2]
[1764888921638,2.99097559,139.6,139.57,8.01481187]
[1764888921838,10.15378627,139.61,139.57,8.01481187]
[1764888922051,7.16281068,139.61,139.58,0.65]
[1764888922357,10.15378627,139.61,139.58,0.65]
[1764888923036,7.16281068,139.61,139.58,0.65]
[1764888923257,10.15378627,139.61,139.58,0.65]
[1764888927656,10.15440615,139.6,139.58,0.65]
[1764888928070,7.16343056,139.6,139.58,0.65]
[1764888928256,10.15440615,139.6,139.58,0.65]
[1764888929060,2.99097559,139.59,139.58,0.65]
[1764888929243,10.15481254,139.59,139.57,0.2]
[1764888929441,2.99097559,139.58,139.57,0.2]
[1764888930956,2.99097559,139.58,139.57,0.85]
[1764888931965,10.15532578,139.58,139.57,0.85]
[1764888932360,10.15532578,139.58,139.57,0.2]
[1764888932554,10.84532578,139.58,139.57,0.2]
[1764888932754,10.15532578,139.58,139.57,0.2]
[1764888933458,10.15532578,139.58,139.57,0.85]
[1764888936551,10.15532578,139.58,139.57,0.2]
[1764888936855,10.84532578,139.58,139.57,0.2]
[1764888937165,19.6552707,139.58,139.57,0.2]
[1764888942348,24.46045915,139.58,139.57,0.2]
[1764888943548,23.77045915,139.58,139.57,0.2]
[1764888943748,18.01502456,139.59,139.57,0.91]
[1764888944168,18.01502456,139.59,139.58,0.71]
[1764888945952,10.15451344,139.6,139.58,0.71]
[1764888946144,7.86,139.6,139.58,0.71]
[1764888946349,12.66980288,139.6,139.58,0.71]
[1764888947271,7.86,139.6,139.58,0.71]
[1764888947966,10.85097559,139.6,139.58,0.71]
[1764888949875,7.86,139.6,139.58,0.71]
[1764888950076,15.66737879,139.6,139.58,0.71]
[1764888950377,10.85097559,139.6,139.58,0.71]
[1764888951480,18.01436648,139.6,139.58,0.71]
[1764888953083,5.9764778,139.63,139.58,25.78505955]
[1764888953247,4.81941164,139.62,139.58,45.08489914]
[1764888953453,7.81038723,139.63,139.59,0.71]
[1764888953669,4.81941164,139.62,139.59,0.71]
[1764888954068,4.81941164,139.62,139.59,7.87373809]
[1764888954561,4.81941164,139.62,139.6,0.71]
[1764888955988,7.81038723,139.62,139.6,0.71]
[1764888961591,4.81941164,139.62,139.6,0.71]
[1764888961964,14.97287872,139.62,139.6,0.71]
[1764888962168,10.84346708,139.62,139.59,0.71]
[1764888963192,2.99097559,139.6,139.59,0.71]
[1764888964874,2.99097559,139.6,139.58,0.71]
[1764888967293,7.16315134,139.61,139.58,0.71]
[1764888967487,14.971454,139.61,139.58,0.71]
[1764888967694,10.15412693,139.61,139.58,0.71]
[1764888975645,7.16178471,139.63,139.58,0.71]
[1764888975897,4.81670452,139.63,139.59,7.86]
[1764888976398,4.81670452,139.63,139.6,0.71]
[1764888976992,2.99097559,139.66,139.61,7.16281068]
[1764888977300,4.81524949,139.65,139.61,7.16281068]
[1764888977483,4.81524949,139.65,139.62,0.71]
[1764888978802,4.81524949,139.65,139.62,7.87202728]
[1764888979481,4.81524949,139.65,139.63,0.71]
[1764888980893,9.48271096,139.65,139.63,0.71]
[1764888981292,4.81524949,139.65,139.63,0.71]
[1764888981489,4.81524949,139.66,139.63,7.87157036]
[1764888981688,12.52740212,139.67,139.63,7.87157036]
[1764888982003,12.52740212,139.67,139.64,0.71]
[1764888982583,12.52740212,139.67,139.64,7.87126212]
[1764888982786,11.82740212,139.67,139.64,7.87126212]
[1764888982975,11.82740212,139.67,139.65,0.71]
[1764888984902,4.66746147,139.66,139.65,0.71]
[1764888985594,11.82740212,139.67,139.65,0.71]
[1764888989314,4.66746147,139.66,139.65,0.71]
[1764888992411,11.82740212,139.67,139.65,0.71]
[1764888992804,12.52740212,139.67,139.65,0.71]
[1764888998726,11.82740212,139.67,139.65,0.71]
[1764888999713,103.4,139.68,139.65,7.8706944]
[1764888999714,115.22680428,139.68,139.65,7.8706944]
[1764888999904,4.81041015,139.67,139.65,7.8706944]
[1764889000113,107.36746147,139.68,139.66,0.71]
[1764889000921,107.36746147,139.68,139.66,7.87024077]
[1764889001232,4.66746147,139.68,139.67,0.71]
[1764889002025,4.66746147,139.68,139.66,7.16024077]
[1764889002223,4.66746147,139.68,139.66,7.87024077]
[1764889002624,4.66746147,139.68,139.66,7.87013681]
[1764889003728,4.66746147,139.68,139.64,25.06389522]
[1764889003924,4.66746147,139.68,139.67,0.66]
[1764889004428,7.15824466,139.7,139.67,0.66]
[1764889004628,16.63260218,139.7,139.67,0.66]
[1764889004799,4.80689605,139.69,139.67,0.66]
[1764889004999,12.4953167,139.71,139.67,0.66]
[1764889006614,12.4953167,139.71,139.67,7.81950842]
[1764889006812,12.4953167,139.71,139.68,0.66]
[1764889010209,0.67,139.71,139.68,0.66]
[1764889010610,5.33746147,139.71,139.68,0.66]
[1764889013637,11.82518565,139.71,139.68,0.66]
[1764889016418,12.49518565,139.71,139.68,0.66]
[1764889022338,7.82772418,139.71,139.68,0.66]
[1764889022539,12.49518565,139.71,139.68,0.66]
[1764889022854,12.49518565,139.71,139.68,7.81919071]
[1764889025638,12.49518565,139.71,139.69,0.71]
[1764889026062,0.1,139.73,139.69,0.71]
[1764889026563,4.90988463,139.73,139.69,5.37746147]
[1764889026757,4.90988463,139.73,139.7,0.71]
[1764889027366,4.90988463,139.73,139.71,7.15768377]
[1764889027367,0.1,139.73,139.71,7.15768377]
[1764889027851,0.1,139.73,139.71,7.86768377]
[1764889028949,0.1,139.73,139.71,7.15768377]
[1764889029144,0.1,139.73,139.72,0.71]
[1764889029571,0.1,139.73,139.71,7.86768377]
[1764889031865,0.1,139.73,139.71,0.71]
[1764889034678,0.1,139.73,139.69,7.15865698]
[1764889034850,5.35746147,139.72,139.69,0.7]
[1764889035168,4.66746147,139.7,139.69,0.7]
[1764889035369,4.66746147,139.7,139.65,17.90123663]
[1764889035370,4.66746147,139.7,139.66,7.86019185]
[1764889035672,5.35746147,139.69,139.66,7.86019185]
[1764889036076,5.35746147,139.69,139.66,7.16019185]
[1764889036251,5.35746147,139.69,139.67,0.7]
[1764889036574,5.35746147,139.69,139.66,0.7]
[1764889036767,0.69,139.69,139.66,0.7]
[1764889036976,5.49988463,139.69,139.66,0.7]
[1764889037165,0.69,139.69,139.66,0.7]
[1764889037674,0.69,139.69,139.67,7.15973365]
[1764889038274,0.69,139.69,139.67,7.85973365]
[1764889041261,5.50309546,139.69,139.67,7.85973365]
[1764889042187,4.81309546,139.69,139.67,7.85973365]
[1764889042777,5.50309546,139.69,139.67,7.85973365]
[1764889045187,4.81309546,139.69,139.67,7.85973365]
[1764889045569,5.50309546,139.69,139.67,7.85973365]
[1764889046993,4.81309546,139.69,139.66,7.16024631]
[1764889047194,7.15862146,139.7,139.68,0.7]
[1764889047375,11.97629502,139.7,139.68,0.7]
[1764889048085,12.66629502,139.7,139.68,0.7]
[1764889051596,8.49299101,139.7,139.68,0.7]
[1764889051800,5.50767356,139.7,139.68,0.7]
[1764889052700,12.66588737,139.7,139.68,0.7]
[1764889052888,12.66588737,139.7,139.65,28.74721505]
[1764889052889,0.69,139.69,139.65,8.56]
[1764889053094,7.80299101,139.68,139.64,7.16110298]
[1764889053297,4.81767356,139.67,139.63,7.16168439]
[1764889053489,4.81767356,139.66,139.63,7.86168439]
[1764889053797,5.50767356,139.66,139.63,7.86168439]
[1764889055382,5.50767356,139.66,139.62,7.86215367]
[1764889055383,5.50767356,139.65,139.62,7.86215367]
[1764889055793,0.69,139.65,139.62,7.86215367]
[1764889056107,5.50623442,139.65,139.62,7.86215367]
[1764889056609,0.69,139.64,139.62,7.86215367]
[1764889056793,0.69,139.64,139.61,7.86251456]
[1764889058905,0.69,139.64,139.61,0.7]
[1764889059996,0.69,139.64,139.61,7.86237461]
[1764889060701,0.69,139.64,139.62,0.7]
[1764889061015,0.69,139.64,139.61,7.86237461]
[1764889061202,10.14638022,139.65,139.62,0.7]
[1764889061406,0.69,139.64,139.62,0.7]
[1764889066802,10.14638022,139.65,139.62,0.7]
[1764889068825,10.80638022,139.65,139.62,0.7]
[1764889071535,3.64531745,139.64,139.61,0.67]
[1764889072618,10.80665348,139.64,139.61,0.67]
[1764889073414,7.82133603,139.64,139.61,0.67]
[1764889074138,3.64531745,139.63,139.6,0.67]
[1764889074836,7.82229766,139.62,139.59,8.53]
[1764889075128,7.82229766,139.62,139.59,0.67]
[1764889077329,10.80761511,139.62,139.59,0.67]
[1764889078339,10.14761511,139.62,139.58,7.16410188]
[1764889078640,0.66,139.61,139.58,7.83410188]
[1764889079139,7.82322058,139.61,139.58,0.67]
[1764889079440,7.82322058,139.61,139.57,7.36475723]
[1764889079441,7.82322058,139.61,139.57,0.87]
[1764889079627,10.80853803,139.61,139.57,8.03484925]
[1764889079814,10.80853803,139.61,139.58,0.67]
[1764889080938,10.80853803,139.61,139.57,7.36484925]
[1764889080939,3.64531745,139.6,139.57,0.2]
[1764889081321,3.64531745,139.59,139.57,0.2]
[1764889082044,0.66,139.59,139.57,0.2]
[1764889082336,12.45526237,139.58,139.57,0.2]
[1764889083735,20.31526237,139.58,139.57,0.2]
[1764889084844,7.86,139.58,139.57,0.2]
[1764889085337,7.86,139.58,139.57,7.3648635]
[1764889085537,122.35526237,139.6,139.57,8.0348635]
[1764889085745,130.17868128,139.6,139.57,8.0348635]
[1764889086122,122.31868128,139.6,139.57,8.0348635]
[1764889086436,148.29277928,139.6,139.57,8.0348635]
[1764889086730,140.43277928,139.6,139.57,8.0348635]
[1764889086917,148.29277928,139.6,139.57,8.0348635]
[1764889087718,148.29277928,139.6,139.57,0.2]
[1764889087719,3.64531745,139.59,139.57,0.2]
[1764889091644,2.98531745,139.58,139.57,0.2]
[1764889092826,3.64531745,139.58,139.57,0.2]
[1764889093449,10.80966764,139.58,139.57,0.2]
[1764889093946,18.66966764,139.58,139.57,0.2]
[1764889095643,27.47961256,139.58,139.57,0.2]
[1764889096034,34.84549019,139.58,139.57,0.2]
[1764889096235,39.65016084,139.58,139.57,0.2]
[1764889098964,42.63547829,139.58,139.57,0.2]
[1764889099337,58.94434229,139.58,139.57,0.2]
[1764889100844,67.90029464,139.58,139.57,0.2]
[1764889101657,63.09562399,139.58,139.57,0.2]
[1764889102248,67.89959109,139.58,139.57,0.2]
[1764889102431,46.0163433,139.58,139.57,0.2]
[1764889103036,29.79491065,139.56,139.55,0.2]
[1764889103255,42.45836518,139.56,139.55,0.2]
[1764889103462,43.11836518,139.56,139.55,0.2]
[1764889103637,45.98790856,139.56,139.55,0.2]
[1764889105239,53.15328545,139.56,139.55,0.2]
[1764889105442,48.34983092,139.56,139.55,0.2]
[1764889110865,53.14921661,139.56,139.55,0.2]
[1764889111265,48.34983092,139.56,139.55,0.2]
[1764889116157,53.15299399,139.56,139.55,0.2]
[1764889118477,52.49299399,139.56,139.55,0.2]
[1764889118662,53.15299399,139.56,139.55,0.2]
[1764889119987,44.63299399,139.56,139.55,0.2]
[1764889120186,24.50464169,139.56,139.55,0.9]
[1764889120482,19.70147862,139.56,139.55,0.9]
[1764889120787,11.84147862,139.56,139.55,0.9]
[1764889124557,7.16537689,139.56,139.55,0.9]
[1764889124759,11.84147862,139.56,139.55,0.9]
[1764889135016,16.66151827,139.56,139.55,0.9]
[1764889135211,16.66261074,139.56,139.55,0.9]
[1764889135516,11.84147862,139.56,139.55,0.9]
[1764889135820,26.13260615,139.56,139.55,0.2]
[1764889135992,49.60879369,139.56,139.55,0.2]
[1764889136734,111.50994492,139.55,139.51,0.2]
[1764889137017,13.48604665,139.52,139.51,0.2]
[1764889137224,26.16722926,139.52,139.51,0.2]
[1764889137897,33.33466045,139.52,139.51,0.2]
[1764889138298,36.2046156,139.52,139.51,0.2]
[1764889138505,31.52851387,139.52,139.51,0.2]
[1764889138711,36.2046156,139.52,139.51,0.2]
[1764889138908,36.8646156,139.52,139.51,0.2]
[1764889139617,41.54071733,139.52,139.51,0.2]
[1764889139819,47.5456762,139.52,139.51,1e-08]
[1764889140504,47.56930245,139.52,139.51,1e-08]
[1764889143418,41.54165371,139.52,139.51,1e-08]
[1764889144727,47.56930245,139.52,139.51,1e-08]
[1764889145422,8.80994492,139.51,139.5,1e-08]
[1764889145623,39.95313137,139.51,139.5,1e-08]
[1764889145808,45.98078011,139.51,139.5,1e-08]
[1764889146206,39.95313137,139.51,139.5,1e-08]
[1764889146608,47.12107632,139.51,139.5,1e-08]
[1764889147010,25.11880892,139.49,139.48,0.2]
[1764889147208,42.49702964,139.49,139.48,0.2]
[1764889148028,45.36780869,139.49,139.48,0.2]
[1764889148711,52.53678137,139.49,139.48,0.2]
[1764889150914,53.19678137,139.49,139.48,0.2]
[1764889151120,8.80994492,139.48,139.47,0.2]
[1764889151317,18.96816564,139.48,139.47,0.2]
[1764889151711,21.83915074,139.48,139.47,0.2]
[1764889151916,21.83915074,139.48,139.44,0.2]
[1764889152120,29.79491065,139.46,139.44,0.2]
[1764889152407,34.59349094,139.46,139.44,0.2]
[1764889152629,38.12509437,139.46,139.44,0.2]
[1764889153220,8.80994492,139.45,139.44,0.2]
[1764889153421,26.70214838,139.45,139.44,1e-08]
[1764889153633,31.49839921,139.45,139.44,1e-08]
[1764889153838,33.7102088,139.45,139.43,1e-08]
[1764889154131,23.61894074,139.44,139.43,1e-08]
[1764889154828,18.82214838,139.44,139.43,1e-08]
[1764889155214,15.98148823,139.44,139.43,0.66000001]
[1764889155520,19.72764504,139.44,139.43,0.66000001]
[1764889156313,11.84764504,139.44,139.43,0.66000001]
[1764889156517,19.72732504,139.45,139.43,0.66000001]